fUST/lending_fUST_20250312
["ID","MTS","AMOUNT","RATE_DAILY","PERIOD"]
[355972469,1741747841988,-293.55694309,0.00016319,2]
[355972475,1741747842041,651.91890196,0.00015663,2]
[355972479,1741747842067,24248.08109804,0.00015663,2]
[355972759,1741748050249,1751.91487,0.00015327,2]
[355972760,1741748073362,-170.682837,0.00016226,2]
[355972761,1741748100525,250.0,0.00015326,2]
[355972762,1741748102159,-155.822863,0.00016226,2]
[355972764,1741748107826,-151.0,0.00016226,2]
[355972770,1741748136275,-151.0,0.00016316,2]
[355972771,1741748136298,-140.80837368,0.00016316,2]
[355972772,1741748165245,-189.44425169,0.00016316,2]
[355972773,1741748167070,-232.779583,0.00016316,2]
[355972774,1741748179153,-36.96779163,0.00016316,2]
[355972775,1741748179180,-300.0,0.00016319,2]
[355972776,1741748179208,-31.09924037,0.0001632,2]
[355972777,1741748180347,-119.90075963,0.0001632,2]
[355972778,1741748180371,-151.0,0.0001632,2]
[355972779,1741748180392,-151.0,0.0001632,2]
[355972780,1741748180414,-78.09924037,0.0001632,2]
[355972781,1741748195953,-500.0,0.00016225,2]
[355972782,1741748197511,-403.16646274,0.00016225,2]
[355972783,1741748229748,-216.330821,0.00016225,2]
[355972784,1741748269841,19203.1759377,0.00015325,2]
[355972785,1741748321336,-72.90075963,0.0001632,2]
[355972786,1741748321358,-130.67831337,0.0001632,2]
[355972787,1741748342282,-20.32168663,0.0001632,2]
[355972788,1741748342305,-156.733117,0.0001632,2]
[355972789,1741748342329,-151.0,0.0001632,2]
[355972790,1741748342351,-151.0,0.0001632,2]
[355972791,1741748342373,-20.94519637,0.0001632,2]
[355972792,1741748403842,-429.54126539,0.00016223,2]
[355972793,1741748412507,-429.54126539,0.00016223,2]
[355972794,1741748417800,-261.02021955,0.00016223,2]
[355972795,1741748417823,-38.97978045,0.00016313,2]
[355972796,1741748439774,-160.72,0.00016313,2]
[355972797,1741748439798,-66.78392654,0.00016313,2]
[355972798,1741748466796,-93.93607346,0.00016313,2]
[355972799,1741748466820,-160.72,0.00016313,2]
[355972800,1741748466841,-45.34392654,0.00016313,2]
[355972802,1741748585621,423.25652966,0.00016003,2]
[355972803,1741748647927,-980.08990653,0.00016221,2]
[355972804,1741748898145,203.89,0.00010959,2]
[355972805,1741748908679,169.91,0.00010959,2]
[355972806,1741748919196,849.55,0.00010959,2]
[355972807,1741748928199,-427.05866614,0.00016219,2]
[355972808,1741748973750,24900.0,0.00015319,2]
[355972809,1741749022357,611.67,0.00010959,2]
[355973291,1741749043631,-13.30446739,0.00016219,2]
[355973373,1741749146082,305.84,0.00010959,2]
[355973375,1741749251744,-232.779583,0.00016164,2]
[355973376,1741749260051,152.92,0.00010959,2]
[355973377,1741749269970,-315.0,0.00016218,2]
[355973378,1741749303675,-218.41,0.00016308,2]
[355973379,1741749303703,-81.59,0.00016308,2]
[355973380,1741749306555,-136.82,0.00016308,2]
[355973381,1741749306812,-14.18,0.0001631,2]
[355973382,1741749309263,-136.82,0.0001631,2]
[355973383,1741749309290,-300.0,0.00016314,2]
[355973384,1741749309316,-11.97674737,0.00016315,2]
[355973385,1741749318588,-600.0,0.0001631,2]
[355973386,1741749324133,-500.0,0.00016315,2]
[355973387,1741749337512,-593.17160537,0.00016273,2]
[355973388,1741749364272,-14.43126966,0.00016273,2]
[355973389,1741749364299,-285.56873034,0.00016314,2]
[355973390,1741749367507,-14.43126966,0.00016314,2]
[355973391,1741749367532,-52.07253388,0.00016315,2]
[355973392,1741749367556,-433.49619646,0.00016315,2]
[355973393,1741749381901,190.0,0.00016,2]
[355973395,1741749395677,200.0,0.00016,7]
[355973396,1741749411972,176.20308902,0.00016,2]
[355973397,1741749423271,-300.0,0.00016215,2]
[355973398,1741749424599,190.0,0.00016,2]
[355973399,1741749424992,-297.5256134,0.00016215,2]
[355973400,1741749434103,-240.0,0.00016118,2]
[355973401,1741749441361,4489.86,0.00016022,2]
[355973402,1741749489434,1967.8137063,0.00015315,2]
[355973403,1741749518898,200.0,0.00016,2]
[355973404,1741749520550,4547.7424108,0.00015316,2]
[355973405,1741749536437,-519.0,0.000162,14]
[355973406,1741749597836,-1411.03897386,0.00016213,2]
[355973407,1741749672001,-200.0,0.000162,2]
[355973408,1741749676540,-657.95853922,0.00016222,2]
[355973409,1741749680099,-200.0,0.000162,2]
[355973410,1741749689822,-200.0,0.000162,3]
[355973412,1741749697942,-200.0,0.000162,3]
[355973413,1741749714797,-200.0,0.000162,3]
[355973414,1741749805974,-1234.65910218,0.00016211,2]
[355973415,1741749927041,-1013.76393885,0.000162,2]
[355973416,1741749959105,-225.0,0.000162,2]
[355973417,1741749990881,-231.64082001,0.000162,2]
[355973418,1741750025492,-620.93862588,0.00016088,2]
[355973419,1741750046752,-181.25103226,0.00016088,2]
[355973420,1741750046777,-899.07568213,0.00016211,2]
[355973421,1741750049469,-181.25103226,0.00016211,2]
[355973422,1741750129863,-5923.0362996,0.000162,2]
[355973423,1741750152692,24900.0,0.0001531,2]
[355973446,1741750233102,-189.0,0.000163,3]
[355973447,1741750233113,-189.0,0.000163,2]
[355973448,1741750233123,-189.0,0.000163,2]
[355973449,1741750233133,-191.9131574,0.000163,2]
[355973450,1741750233144,-67.0268426,0.00016303,2]
[355973451,1741750233155,-83.9731574,0.00016303,2]
[355973452,1741750233165,-600.0,0.00016303,2]
[355973453,1741750233174,-300.0,0.00016307,2]
[355973454,1741750233184,-601.25740482,0.00016307,2]
[355973455,1741750233194,-394.83449687,0.00016307,2]
[355973456,1741750233204,-1000.0,0.00016308,2]
[355973457,1741750233214,-1000.0,0.00016308,2]
[355973458,1741750233223,-1000.0,0.00016308,2]
[355973459,1741750233232,-1000.0,0.00016308,2]
[355973460,1741750233241,-1000.0,0.00016308,2]
[355973461,1741750233251,-1000.0,0.00016308,2]
[355973462,1741750233260,-619.55251954,0.00016308,2]
[355973463,1741750233270,-645.54644264,0.00016308,2]
[355973464,1741750233280,-645.54644264,0.00016308,2]
[355973465,1741750233290,-645.54644264,0.00016308,2]
[355973466,1741750233299,-645.54644264,0.00016308,2]
[355973467,1741750233309,-645.54644264,0.00016308,2]
[355973468,1741750233319,-645.54644264,0.00016308,2]
[355973469,1741750233328,-645.54644264,0.00016308,2]
[355973470,1741750233337,-645.54644264,0.00016308,2]
[355973471,1741750233347,-645.54644264,0.00016308,2]
[355973472,1741750233356,-645.54644264,0.00016308,2]
[355973473,1741750233366,-645.54644264,0.00016308,2]
[355973474,1741750233379,-645.54644264,0.00016308,2]
[355973475,1741750233388,-645.54644264,0.00016308,2]
[355973476,1741750233398,-645.54644264,0.00016308,2]
[355973477,1741750233408,-645.54644264,0.00016308,2]
[355973478,1741750233418,-645.54644264,0.00016308,2]
[355973479,1741750233428,-645.54644264,0.00016308,2]
[355973480,1741750233437,-645.54644264,0.00016308,2]
[355973481,1741750233447,-645.54644264,0.00016308,2]
[355973482,1741750233457,-645.54644264,0.00016308,2]
[355973483,1741750233467,-645.54644264,0.00016308,2]
[355973484,1741750233477,-645.54644264,0.00016308,2]
[355973485,1741750233487,-645.54644264,0.00016308,2]
[355973486,1741750233496,-645.54644264,0.00016308,2]
[355973487,1741750233506,-645.54644264,0.00016308,2]
[355973488,1741750233516,-645.54644264,0.00016308,2]
[355973489,1741750233526,-645.54644264,0.00016308,2]
[355973490,1741750233536,-645.54644264,0.00016308,2]
[355973491,1741750233547,-645.54644264,0.00016308,2]
[355973492,1741750233557,-645.54644264,0.00016308,2]
[355973493,1741750233567,-645.54644264,0.00016308,2]
[355973494,1741750233577,-645.54644264,0.00016308,2]
[355973495,1741750233586,-645.54644264,0.00016308,2]
[355973496,1741750233596,-645.54644264,0.00016308,2]
[355973497,1741750233606,-645.54644264,0.00016308,2]
[355973498,1741750233616,-645.54644264,0.00016308,2]
[355973499,1741750233628,-1558.40103904,0.00016308,2]
[355973500,1741750233638,-1558.40103904,0.00016308,2]
[355973501,1741750233648,-1558.40103904,0.00016308,2]
[355973502,1741750233657,-1558.40103904,0.00016308,2]
[355973503,1741750233667,-1558.40103904,0.00016308,2]
[355973504,1741750233677,-1558.40103904,0.00016308,2]
[355973505,1741750233686,-1558.40103904,0.00016308,2]
[355973506,1741750233696,-1558.40103904,0.00016308,2]
[355973507,1741750233706,-1558.40103904,0.00016308,2]
[355973508,1741750233716,-1558.40103904,0.00016308,2]
[355973509,1741750233726,-1558.40103904,0.00016308,2]
[355973510,1741750233736,-1558.40103904,0.00016308,2]
[355973511,1741750233750,-1558.40103904,0.00016308,2]
[355973512,1741750233760,-1558.40103904,0.00016308,2]
[355973513,1741750233770,-1558.40103904,0.00016308,2]
[355973514,1741750233780,-264.94491252,0.00016308,2]
[355973515,1741750233894,-1293.45612652,0.00016308,2]
[355973516,1741750233904,-1558.40103904,0.00016308,2]
[355973517,1741750233914,-1558.40103904,0.00016308,2]
[355973518,1741750233924,-1558.40103904,0.00016308,2]
[355973519,1741750233933,-1558.40103904,0.00016308,2]
[355973520,1741750233943,-1558.40103904,0.00016308,2]
[355973521,1741750233952,-1558.40103904,0.00016308,2]
[355973522,1741750233962,-1558.40103904,0.00016308,2]
[355973523,1741750233972,-1558.40103904,0.00016308,2]
[355973524,1741750233981,-151.0,0.00016309,2]
[355973525,1741750233991,-151.0,0.00016309,2]
[355973526,1741750234000,-151.0,0.00016309,2]
[355973527,1741750234010,-162.058084,0.00016309,2]
[355973528,1741750234020,-151.0,0.0001631,2]
[355973529,1741750234029,-146.41418148,0.0001631,2]
[355973533,1741750238600,-163.095784,0.00016309,2]
[355973534,1741750238609,-163.095784,0.00016309,2]
[355973535,1741750238619,-163.095784,0.00016309,2]
[355973539,1741750238643,-4.58581852,0.0001631,2]
[355973541,1741750238655,-151.0,0.0001631,2]
[355973543,1741750238666,-157.669379,0.0001631,2]
[355973545,1741750238676,-151.0,0.0001631,2]
[355973547,1741750238686,-151.0,0.0001631,2]
[355973549,1741750238697,-151.0,0.0001631,2]
[355973551,1741750238707,-151.0,0.0001631,2]
[355973553,1741750238717,-162.886757,0.0001631,2]
[355973556,1741750238727,-151.0,0.0001631,2]
[355973559,1741750238737,-151.0,0.0001631,2]
[355973563,1741750238748,-151.0,0.0001631,2]
[355973566,1741750238759,-151.0,0.0001631,2]
[355973569,1741750238769,-151.0,0.0001631,2]
[355973572,1741750238778,-151.0,0.0001631,2]
[355973575,1741750238790,-151.0,0.0001631,2]
[355973579,1741750238800,-151.0,0.0001631,2]
[355973582,1741750238810,-151.0,0.0001631,2]
[355973585,1741750238820,-151.0,0.0001631,2]
[355973587,1741750238831,-151.0,0.0001631,2]
[355973590,1741750238841,-151.0,0.0001631,2]
[355973592,1741750238851,-151.0,0.0001631,2]
[355973595,1741750238861,-248.025178,0.0001631,2]
[355973597,1741750238871,-151.0,0.0001631,2]
[355973599,1741750238883,-151.0,0.0001631,2]
[355973601,1741750238893,-151.0,0.0001631,2]
[355973602,1741750238903,-151.0,0.0001631,2]
[355973603,1741750238912,-151.0,0.0001631,2]
[355973604,1741750238922,-151.0,0.0001631,2]
[355973605,1741750238931,-109.17849711,0.0001631,2]
[355973653,1741750240847,-163.095784,0.00016309,2]
[355973655,1741750240857,-163.095784,0.00016309,2]
[355973657,1741750240867,-163.095784,0.00016309,2]
[355973659,1741750240876,-163.095784,0.00016309,2]
[355973661,1741750240887,-41.82150289,0.0001631,2]
[355973664,1741750240897,-151.0,0.0001631,2]
[355973666,1741750240907,-151.0,0.0001631,2]
[355973668,1741750240918,-151.0,0.0001631,2]
[355973670,1741750240928,-151.0,0.0001631,2]
[355973672,1741750240938,-151.0,0.0001631,2]
[355973674,1741750240948,-151.0,0.0001631,2]
[355973676,1741750240959,-151.0,0.0001631,2]
[355973678,1741750240969,-151.0,0.0001631,2]
[355973680,1741750240979,-151.0,0.0001631,2]
[355973683,1741750240989,-151.0,0.0001631,2]
[355973685,1741750240998,-151.0,0.0001631,2]
[355973687,1741750241008,-284.13248576,0.0001631,2]
[355974094,1741750248405,-500.0,0.00016164,2]
[355974095,1741750423688,1958.5007021,0.00015313,2]
[355974096,1741750486359,-300.0,0.00016308,2]
[355974097,1741750486386,-500.0,0.00016308,2]
[355974098,1741750486410,-500.0,0.00016308,2]
[355974099,1741750486435,-500.0,0.00016308,2]
[355974100,1741750486459,-500.0,0.00016308,2]
[355974101,1741750486484,-500.0,0.00016308,2]
[355974102,1741750486509,-500.0,0.00016308,2]
[355974103,1741750486533,-500.0,0.00016308,2]
[355974104,1741750486560,-500.0,0.00016308,2]
[355974105,1741750486585,-500.0,0.00016308,2]
[355974106,1741750486613,-500.0,0.00016308,2]
[355974107,1741750486637,-500.0,0.00016308,2]
[355974108,1741750486662,-500.0,0.00016308,2]
[355974109,1741750486687,-500.0,0.00016308,2]
[355974110,1741750486711,-500.0,0.00016308,2]
[355974111,1741750486736,-500.0,0.00016308,2]
[355974112,1741750486761,-500.0,0.00016308,2]
[355974113,1741750486785,-650.0,0.00016308,2]
[355974114,1741750486809,-500.0,0.00016308,2]
[355974115,1741750486836,-500.0,0.00016308,2]
[355974116,1741750486863,-500.0,0.00016308,2]
[355974117,1741750486887,-500.0,0.00016308,2]
[355974118,1741750486915,-500.0,0.00016308,2]
[355974119,1741750486940,-500.0,0.00016308,2]
[355974120,1741750486965,-185.0,0.00016308,2]
[355974121,1741750486987,-163.095784,0.00016309,2]
[355974122,1741750487010,-163.095784,0.00016309,2]
[355974123,1741750487032,-163.095784,0.00016309,2]
[355974124,1741750487054,-163.095784,0.00016309,2]
[355974125,1741750487078,-163.095784,0.00016309,2]
[355974126,1741750487102,-163.095784,0.00016309,2]
[355974127,1741750487124,-163.095784,0.00016309,2]
[355974128,1741750487147,-290.165658,0.00016309,2]
[355974129,1741750487169,-290.165658,0.00016309,2]
[355974130,1741750487192,-290.165658,0.00016309,2]
[355974131,1741750487214,-290.165658,0.00016309,2]
[355974132,1741750487236,-290.165658,0.00016309,2]
[355974133,1741750487258,-290.165658,0.00016309,2]
[355974134,1741750487280,-290.165658,0.00016309,2]
[355974135,1741750487302,-290.165658,0.00016309,2]
[355974136,1741750487324,-290.165658,0.00016309,2]
[355974137,1741750487346,-290.165658,0.00016309,2]
[355974138,1741750487369,-290.165658,0.00016309,2]
[355974139,1741750487392,-290.165658,0.00016309,2]
[355974140,1741750487414,-290.165658,0.00016309,2]
[355974141,1741750487436,-290.165658,0.00016309,2]
[355974142,1741750487459,-290.165658,0.00016309,2]
[355974143,1741750487481,-290.165658,0.00016309,2]
[355974144,1741750487503,-290.165658,0.00016309,2]
[355974145,1741750487526,-290.165658,0.00016309,2]
[355974146,1741750487549,-290.165658,0.00016309,2]
[355974147,1741750487571,-290.165654,0.00016309,2]
[355974148,1741750487595,-151.0,0.00016309,2]
[355974149,1741750487620,-151.0,0.00016309,2]
[355974150,1741750487644,-151.0,0.00016309,2]
[355974151,1741750487667,-153.74886,0.00016309,2]
[355974152,1741750487690,-151.0,0.00016309,2]
[355974153,1741750487713,-151.0,0.00016309,2]
[355974154,1741750487736,-11.267496,0.00016309,2]
[355974155,1741750499022,-300.0,0.0001621,2]
[355974158,1741750509767,57.23602199,0.000191,120]
[355974159,1741750533178,-645.2858751,0.0001621,2]
[355974160,1741750533203,-151.0,0.00016301,2]
[355974161,1741750533227,-600.0,0.00016301,2]
[355974162,1741750533251,-300.0,0.00016308,2]
[355974163,1741750533277,-500.0,0.00016308,2]
[355974164,1741750533303,-500.0,0.00016308,2]
[355974165,1741750533329,-500.0,0.00016308,2]
[355974166,1741750533355,-500.0,0.00016308,2]
[355974167,1741750533382,-500.0,0.00016308,2]
[355974168,1741750533410,-500.0,0.00016308,2]
[355974169,1741750533438,-500.0,0.00016308,2]
[355974170,1741750533465,-500.0,0.00016308,2]
[355974171,1741750533492,-500.0,0.00016308,2]
[355974172,1741750533518,-500.0,0.00016308,2]
[355974173,1741750533545,-500.0,0.00016308,2]
[355974174,1741750533571,-500.0,0.00016308,2]
[355974175,1741750533598,-500.0,0.00016308,2]
[355974176,1741750533629,-500.0,0.00016308,2]
[355974177,1741750533658,-500.0,0.00016308,2]
[355974178,1741750533684,-542.28768313,0.00016308,2]
[355974179,1741750533712,-500.0,0.00016308,2]
[355974180,1741750533737,-500.0,0.00016308,2]
[355974181,1741750533764,-500.0,0.00016308,2]
[355974182,1741750533790,-500.0,0.00016308,2]
[355974183,1741750533817,-500.0,0.00016308,2]
[355974184,1741750533846,-500.0,0.00016308,2]
[355974185,1741750533873,-500.0,0.00016308,2]
[355974186,1741750533902,-500.0,0.00016308,2]
[355974187,1741750533930,-500.0,0.00016308,2]
[355974188,1741750533958,-500.0,0.00016308,2]
[355974189,1741750533986,-500.0,0.00016308,2]
[355974190,1741750534013,-500.0,0.00016308,2]
[355974191,1741750534040,-500.0,0.00016308,2]
[355974192,1741750534066,-500.0,0.00016308,2]
[355974193,1741750534093,-500.0,0.00016308,2]
[355974194,1741750534120,-500.0,0.00016308,2]
[355974195,1741750534148,-500.0,0.00016308,2]
[355974196,1741750534175,-500.0,0.00016308,2]
[355974197,1741750534202,-500.0,0.00016308,2]
[355974198,1741750534228,-500.0,0.00016308,2]
[355974199,1741750534253,-261.42644177,0.00016308,2]
[355974200,1741750552741,-238.57355823,0.00016308,2]
[355974201,1741750552769,-326.14007431,0.00016308,2]
[355974202,1741750552796,-500.0,0.00016308,2]
[355974203,1741750552823,-500.0,0.00016308,2]
[355974204,1741750552851,-500.0,0.00016308,2]
[355974205,1741750552876,-500.0,0.00016308,2]
[355974206,1741750552903,-500.0,0.00016308,2]
[355974207,1741750552931,-500.0,0.00016308,2]
[355974208,1741750552955,-500.0,0.00016308,2]
[355974209,1741750552980,-500.0,0.00016308,2]
[355974210,1741750553004,-500.0,0.00016308,2]
[355974211,1741750553029,-500.0,0.00016308,2]
[355974212,1741750553054,-500.0,0.00016308,2]
[355974213,1741750553079,-500.0,0.00016308,2]
[355974214,1741750553109,-326.14007431,0.00016308,2]
[355974215,1741750553132,-139.732504,0.00016309,2]
[355974216,1741750553155,-151.0,0.00016309,2]
[355974217,1741750553180,-151.0,0.00016309,2]
[355974218,1741750553203,-151.0,0.00016309,2]
[355974219,1741750553225,-151.417424,0.00016309,2]
[355974220,1741750553250,-295.59893219,0.00016309,2]
[355974221,1741750553274,-420.88018338,0.00016309,2]
[355974222,1741750553297,-156.374263,0.00016309,2]
[355974223,1741750553321,-246.45537,0.00016309,2]
[355974224,1741750553346,-151.0,0.00016309,2]
[355974225,1741750553370,-151.0,0.00016309,2]
[355974226,1741750553396,-151.0,0.00016309,2]
[355974227,1741750553421,-151.0,0.00016309,2]
[355974228,1741750553445,-151.0,0.00016309,2]
[355974229,1741750553469,-151.0,0.00016309,2]
[355974230,1741750553493,-151.0,0.00016309,2]
[355974231,1741750553518,-160.21789,0.00016309,2]
[355974232,1741750553541,-10028.46972658,0.00016309,2]
[355974233,1741750555870,1331.5604197,0.00015313,2]
[355974234,1741750592788,-300.0,0.00016308,2]
[355974235,1741750592812,-151.0,0.00016309,2]
[355974236,1741750592835,-151.0,0.00016309,2]
[355974237,1741750592860,-9971.53027342,0.00016309,2]
[355974238,1741750592884,-151.0,0.0001631,2]
[355974239,1741750592908,-151.0,0.0001631,2]
[355974240,1741750592931,-151.0,0.0001631,2]
[355974241,1741750592957,-151.0,0.0001631,2]
[355974242,1741750592980,-151.0,0.0001631,2]
[355974243,1741750593002,-151.0,0.0001631,2]
[355974244,1741750593027,-151.0,0.0001631,2]
[355974245,1741750593052,-151.0,0.0001631,2]
[355974246,1741750593077,-151.0,0.0001631,2]
[355974247,1741750593106,-151.0,0.0001631,2]
[355974248,1741750593132,-151.0,0.0001631,2]
[355974249,1741750593158,-151.0,0.0001631,2]
[355974250,1741750593183,-151.0,0.0001631,2]
[355974251,1741750593210,-232.272032,0.0001631,2]
[355974252,1741750593237,-151.0,0.0001631,2]
[355974253,1741750593262,-151.0,0.0001631,2]
[355974254,1741750593287,-151.0,0.0001631,2]
[355974255,1741750593312,-151.0,0.0001631,2]
[355974256,1741750593337,-151.0,0.0001631,2]
[355974257,1741750593363,-151.0,0.0001631,2]
[355974258,1741750593388,-151.0,0.0001631,2]
[355974259,1741750593413,-151.0,0.0001631,2]
[355974260,1741750593438,-151.0,0.0001631,2]
[355974261,1741750593464,-151.0,0.0001631,2]
[355974262,1741750593488,-151.0,0.0001631,2]
[355974263,1741750593515,-169.376514,0.0001631,2]
[355974264,1741750593540,-151.0,0.0001631,2]
[355974265,1741750593564,-151.0,0.0001631,2]
[355974266,1741750593590,-151.0,0.0001631,2]
[355974267,1741750593614,-151.0,0.0001631,2]
[355974268,1741750593639,-151.0,0.0001631,2]
[355974269,1741750593664,-155.311336,0.0001631,2]
[355974270,1741750593690,-151.0,0.0001631,2]
[355974271,1741750593715,-151.0,0.0001631,2]
[355974272,1741750593740,-151.0,0.0001631,2]
[355974273,1741750593765,-151.0,0.0001631,2]
[355974274,1741750593793,-151.0,0.0001631,2]
[355974275,1741750593818,-151.0,0.0001631,2]
[355974276,1741750593844,-151.0,0.0001631,2]
[355974277,1741750593870,-151.0,0.0001631,2]
[355974278,1741750593896,-151.0,0.0001631,2]
[355974279,1741750593922,-151.0,0.0001631,2]
[355974280,1741750593949,-151.0,0.0001631,2]
[355974281,1741750593975,-151.0,0.0001631,2]
[355974282,1741750594000,-151.0,0.0001631,2]
[355974283,1741750594025,-151.0,0.0001631,2]
[355974284,1741750594051,-228.084078,0.0001631,2]
[355974285,1741750594076,-178.282062,0.0001631,2]
[355974286,1741750594101,-178.282062,0.0001631,2]
[355974287,1741750594127,-178.282062,0.0001631,2]
[355974288,1741750594154,-178.282062,0.0001631,2]
[355974289,1741750594179,-178.282062,0.0001631,2]
[355974290,1741750594220,-178.282062,0.0001631,2]
[355974291,1741750594246,-178.282062,0.0001631,2]
[355974292,1741750594272,-178.282062,0.0001631,2]
[355974293,1741750594299,-178.282062,0.0001631,2]
[355974294,1741750594326,-178.282062,0.0001631,2]
[355974295,1741750594353,-178.282062,0.0001631,2]
[355974296,1741750594380,-178.282062,0.0001631,2]
[355974297,1741750594406,-9.04102258,0.0001631,2]
[355974298,1741750660274,-300.0,0.00016308,2]
[355974299,1741750660300,-500.0,0.00016309,2]
[355974300,1741750660324,-500.0,0.00016309,2]
[355974301,1741750660348,-500.0,0.00016309,2]
[355974302,1741750660371,-576.92085368,0.00016309,2]
[355974303,1741750660396,-500.0,0.00016309,2]
[355974304,1741750660420,-500.0,0.00016309,2]
[355974305,1741750660443,-463.181202,0.00016309,2]
[355974306,1741750660466,-463.181202,0.00016309,2]
[355974307,1741750660488,-151.0,0.00016309,2]
[355974308,1741750660511,-151.0,0.00016309,2]
[355974309,1741750660534,-151.0,0.00016309,2]
[355974310,1741750660557,-151.0,0.00016309,2]
[355974311,1741750660580,-151.0,0.00016309,2]
[355974312,1741750660604,-151.0,0.00016309,2]
[355974313,1741750660628,-169.24103942,0.0001631,2]
[355974314,1741750660650,-178.282062,0.0001631,2]
[355974315,1741750660674,-178.282062,0.0001631,2]
[355974316,1741750660696,-178.282062,0.0001631,2]
[355974317,1741750660719,-178.282062,0.0001631,2]
[355974318,1741750660743,-178.282062,0.0001631,2]
[355974319,1741750660767,-178.282062,0.0001631,2]
[355974320,1741750660789,-178.282061,0.0001631,2]
[355974321,1741750660815,-151.0,0.0001631,2]
[355974322,1741750660838,-151.0,0.0001631,2]
[355974323,1741750660861,-151.0,0.0001631,2]
[355974324,1741750660884,-151.0,0.0001631,2]
[355974325,1741750660910,-151.0,0.0001631,2]
[355974326,1741750660933,-151.0,0.0001631,2]
[355974327,1741750660956,-151.0,0.0001631,2]
[355974328,1741750660980,-151.0,0.0001631,2]
[355974329,1741750661004,-151.0,0.0001631,2]
[355974330,1741750661026,-151.0,0.0001631,2]
[355974331,1741750661049,-151.0,0.0001631,2]
[355974332,1741750661071,-301.860979,0.0001631,2]
[355974333,1741750661094,-151.0,0.0001631,2]
[355974334,1741750661117,-151.0,0.0001631,2]
[355974335,1741750661141,-172.90466,0.0001631,2]
[355974336,1741750661164,-172.90466,0.0001631,2]
[355974337,1741750661188,-673.235031,0.0001631,2]
[355974338,1741750661210,-673.235031,0.0001631,2]
[355974339,1741750661237,-151.0,0.0001631,2]
[355974340,1741750661259,-151.0,0.0001631,2]
[355974341,1741750661283,-151.0,0.0001631,2]
[355974342,1741750661306,-390.717032,0.0001631,2]
[355974343,1741750661330,-390.717032,0.0001631,2]
[355974344,1741750661353,-390.717032,0.0001631,2]
[355974345,1741750661376,-390.717032,0.0001631,2]
[355974346,1741750661399,-151.0,0.0001631,2]
[355974347,1741750661422,-151.0,0.0001631,2]
[355974348,1741750661445,-151.0,0.0001631,2]
[355974349,1741750661468,-151.0,0.0001631,2]
[355974350,1741750661492,-151.0,0.0001631,2]
[355974351,1741750661516,-151.0,0.0001631,2]
[355974352,1741750661540,-156.733117,0.0001631,2]
[355974353,1741750661563,-151.0,0.0001631,2]
[355974354,1741750661586,-151.0,0.0001631,2]
[355974355,1741750661609,-151.0,0.0001631,2]
[355974356,1741750661632,-151.0,0.0001631,2]
[355974357,1741750661656,-151.0,0.0001631,2]
[355974358,1741750661680,-151.0,0.0001631,2]
[355974359,1741750661704,-151.0,0.0001631,2]
[355974360,1741750661727,-151.0,0.0001631,2]
[355974361,1741750661750,-151.0,0.0001631,2]
[355974362,1741750661773,-151.0,0.0001631,2]
[355974363,1741750661796,-151.0,0.0001631,2]
[355974364,1741750661818,-151.0,0.0001631,2]
[355974365,1741750661841,-151.0,0.0001631,2]
[355974366,1741750661864,-177.966148,0.0001631,2]